bitfinex/quotes_ETHUSD_20250924
["timestamp","ask_amount","ask_price","bid_price","bid_amount"]
[1758682387273,2.39062405,4183.1,4181.9,4.355]
[1758682387437,0.94567165,4183.2,4181.9,4.7868]
[1758682387438,0.72445605,4183.0,4181.9,4.7868]
[1758682387621,0.232,4183.4,4181.9,4.7868]
[1758682387622,0.21594442,4182.9,4182.0,0.023912]
[1758682387955,0.21594442,4182.9,4181.9,7.17805644]
[1758682387956,0.21594442,4182.8,4181.9,4.7868]
[1758682388119,0.21596354,4182.7,4181.9,4.7868]
[1758682388320,0.216049,4182.6,4181.9,4.7868]
[1758682388558,0.21605964,4182.5,4181.9,4.7868]
[1758682388756,0.50928898,4183.0,4181.9,4.355]
[1758682388940,2.39090997,4182.6,4181.9,4.355]
[1758682389147,2.39090997,4182.6,4181.1,0.02]
[1758682389148,0.72531953,4182.5,4181.1,0.02]
[1758682389331,0.792,4182.3,4181.1,0.02]
[1758682389531,0.792,4182.1,4181.1,0.02]
[1758682389754,0.72531953,4182.0,4181.1,0.02]
[1758682389968,0.72531953,4181.9,4181.1,0.02]
[1758682390173,0.72531953,4181.8,4181.1,0.02]
[1758682390398,0.72531953,4181.7,4181.2,0.02391657]
[1758682390597,3.0,4182.5,4181.2,0.02391657]
[1758682390895,0.72595315,4182.4,4181.2,0.02391657]
[1758682391192,0.72595315,4182.3,4181.3,0.4683]
[1758682391404,0.72595315,4182.2,4181.3,0.4683]
[1758682391580,0.72595315,4182.1,4181.3,0.4683]
[1758682391781,2.78757521,4182.2,4181.1,0.02]
[1758682391782,0.72595315,4182.0,4181.1,0.02]
[1758682391964,2.39136813,4181.8,4181.1,0.02]
[1758682392311,2.39145534,4181.6,4181.1,0.02]
[1758682392506,0.84515315,4181.5,4181.1,0.02]
[1758682392661,0.72595315,4181.4,4181.1,0.02]
[1758682392858,0.72595315,4181.3,4181.1,0.02]
[1758682393159,0.72595315,4181.2,4181.1,0.02]
[1758682393497,3.11761104,4181.2,4181.1,0.02]
[1758682393696,5.22879364,4181.2,4181.1,0.02]
[1758682393899,4.51382007,4181.2,4181.1,0.02]
[1758682394064,5.30582007,4181.2,4181.1,0.02]
[1758682394663,5.32321961,4181.2,4181.1,0.02]
[1758682394864,4.84370301,4181.2,4181.1,0.02]
[1758682395296,5.30580301,4181.2,4181.1,0.02]
[1758682396215,8.30580301,4181.2,4181.1,0.02]
[1758682396503,3.792,4180.9,4180.8,0.004]
[1758682396682,7.04273622,4180.9,4180.8,0.004]
[1758682397004,8.88564796,4180.9,4180.8,0.004]
[1758682398183,13.21364796,4180.9,4180.8,0.004]
[1758682398517,14.48733948,4180.9,4180.8,0.004]
[1758682398811,14.02523948,4180.9,4180.8,0.004]
[1758682399012,14.48733948,4180.9,4180.8,0.004]
[1758682399311,13.21364796,4180.9,4180.8,0.004]
[1758682399606,14.48733948,4180.9,4180.8,0.004]
[1758682399809,14.48690156,4180.9,4180.8,0.004]
[1758682400401,13.21321004,4180.9,4180.8,0.004]
[1758682401983,12.42121004,4180.9,4180.8,0.004]
[1758682402611,12.42121004,4180.9,4180.8,1e-08]
[1758682402612,13.21321004,4180.9,4180.8,1e-08]
[1758682403889,3.18411558,4180.4,4180.3,0.004]
[1758682404088,11.35599663,4180.4,4180.3,1e-08]
[1758682404296,12.05639663,4180.4,4180.3,1e-08]
[1758682404618,12.43170022,4180.4,4180.3,1e-08]
[1758682405314,13.70164179,4180.4,4180.3,1e-08]
[1758682405524,14.04106767,4180.4,4180.3,1e-08]
[1758682406327,15.31010595,4180.4,4180.3,1e-08]
[1758682407040,2.39280245,4179.2,4179.1,0.02]
[1758682407330,10.71257017,4179.2,4179.1,0.02]
[1758682407534,13.23320493,4179.2,4179.1,0.02]
[1758682407845,13.14646501,4179.2,4179.1,0.02]
[1758682408021,13.60856501,4179.2,4179.1,0.02]
[1758682409629,12.90816501,4179.2,4179.1,0.02]
[1758682410130,5.41136256,4179.2,4179.1,0.02]
[1758682410331,10.28393025,4179.2,4179.1,0.02]
[1758682410906,11.07593025,4179.2,4179.1,0.02]
[1758682411200,10.86016253,4179.2,4179.1,0.02]
[1758682414329,10.85416253,4179.2,4179.1,0.02]
[1758682414531,12.30856521,4179.2,4179.1,0.02]
[1758682415255,12.52322388,4179.2,4179.1,0.02]
[1758682417359,13.03190808,4179.2,4179.1,0.02]
[1758682417528,4.38201875,4179.2,4179.1,0.4491]
[1758682417854,11.0568212,4179.2,4179.1,0.4491]
[1758682418032,11.0568212,4179.2,4179.1,0.02]
[1758682418352,11.56591375,4179.2,4179.1,0.02]
[1758682419356,11.69858447,4179.2,4179.1,0.02]
[1758682420329,9.3058402,4179.2,4179.1,0.02]
[1758682420549,11.69864265,4179.2,4179.1,0.4491]
[1758682420751,11.69864265,4179.2,4179.1,0.02]
[1758682423270,12.33414506,4179.2,4179.1,0.02]
[1758682423972,11.52714506,4179.2,4179.1,0.02]
[1758682424140,10.89164265,4179.2,4179.1,0.02]
[1758682424340,11.52714506,4179.2,4179.1,0.02]
[1758682424542,12.60091364,4179.2,4179.1,0.02]
[1758682424757,13.83991364,4179.2,4179.1,0.02]
[1758682425538,15.10895192,4179.2,4179.1,0.02]
[1758682425740,13.83991364,4179.2,4179.1,0.02]
[1758682425974,13.83991364,4179.2,4179.1,0.024]
[1758682426775,2.39308875,4178.7,4178.6,0.004]
[1758682427073,8.84341718,4178.7,4178.6,0.004]
[1758682427453,9.21881736,4178.7,4178.6,0.004]
[1758682427681,13.24351736,4178.7,4178.6,0.004]
[1758682427977,12.83827889,4178.7,4178.6,0.004]
[1758682430981,4.2318803,4178.7,4178.6,0.4636]
[1758682431283,8.4838803,4178.7,4178.6,0.004]
[1758682431644,4.2318803,4178.7,4178.6,0.004]
[1758682431843,5.4878803,4178.7,4178.6,0.4636]
[1758682432071,5.4878803,4178.7,4178.6,0.6987]
[1758682432072,6.34121885,4178.7,4178.6,0.6987]
[1758682432290,8.4878803,4178.7,4178.6,0.4636]
[1758682432973,9.2798803,4178.7,4178.6,0.4636]
[1758682433540,12.73387496,4178.7,4178.6,0.004]
[1758682433942,8.47787496,4178.7,4178.6,0.004]
[1758682434146,10.33478621,4178.7,4178.6,0.4636]
[1758682434386,7.41696905,4178.7,4178.6,0.004]
[1758682434561,11.66696905,4178.7,4178.6,0.004]
[1758682435505,7.41696905,4178.7,4178.6,0.004]
[1758682435648,9.2708803,4178.7,4178.6,0.004]
[1758682435983,11.66396905,4178.7,4178.6,0.004]
[1758682436186,13.40496786,4178.7,4178.6,0.004]
[1758682436484,13.40702803,4178.7,4178.6,0.004]
[1758682436782,10.87202922,4178.7,4178.6,0.4636]
[1758682437565,10.87202922,4178.7,4178.6,0.004]
[1758682437946,9.27094047,4178.7,4178.6,0.004]
[1758682438153,10.56554668,4178.7,4178.6,0.004]
[1758682438349,5.02594047,4178.7,4178.6,0.004]
[1758682438579,1.23394047,4178.7,4178.6,2.63224602]
[1758682438777,1.28203379,4179.2,4178.6,2.63224602]
[1758682438778,0.1192,4179.1,4178.6,0.6987]
[1758682438979,0.51307066,4179.0,4178.7,0.6947]
[1758682439293,4.242,4179.1,4178.8,0.6947]
[1758682439491,0.51282831,4179.0,4178.9,0.6947]
[1758682439794,0.51282831,4179.0,4178.6,0.1232]
[1758682439990,0.51282831,4178.9,4178.6,0.1232]
[1758682440190,4.242,4179.1,4178.6,0.1232]
[1758682440393,0.51279778,4179.0,4178.7,0.6947]
[1758682440694,0.64123158,4179.7,4178.8,0.71863031]
[1758682440992,0.001,4179.9,4178.9,0.6947]
[1758682440993,3.99184905,4179.6,4178.9,0.6947]
[1758682441195,3.99184905,4179.5,4178.9,0.6947]
[1758682441354,0.51284905,4179.4,4178.9,0.6947]
[1758682441558,3.479,4179.5,4178.9,0.6947]
[1758682441559,0.51284905,4179.3,4179.0,0.4596]
[1758682441758,0.51284905,4179.3,4178.6,0.004]
[1758682441759,4.75184905,4179.2,4178.6,0.004]
[1758682442072,0.51284905,4179.1,4178.7,0.4596]
[1758682442383,0.64123158,4179.6,4178.8,0.6947]
[1758682442552,4.75039374,4179.5,4178.9,0.4596]
[1758682442755,0.51239374,4179.4,4178.9,0.4596]
[1758682443041,0.51239374,4179.3,4179.0,0.4596]
[1758682443340,4.75039374,4179.2,4179.0,0.4596]
[1758682443639,0.51239374,4179.1,4179.0,0.4596]
[1758682443934,2.90525344,4179.1,4178.6,0.4636]
[1758682444134,0.51239374,4179.0,4178.6,0.4636]
[1758682444342,4.236,4178.9,4178.6,0.4636]
[1758682444553,4.236,4178.9,4178.6,0.004]
[1758682444554,0.51215515,4178.8,4178.6,0.004]
[1758682444761,2.39308875,4178.7,4178.6,0.004]
[1758682444917,2.9052439,4178.7,4178.6,0.004]
[1758682445116,6.6972439,4178.7,4178.6,0.004]
[1758682445442,7.3769439,4178.7,4178.6,0.004]
[1758682445639,11.6119439,4178.7,4178.6,0.004]
[1758682445816,13.35507108,4178.7,4178.6,0.004]
[1758682446348,13.73053175,4178.7,4178.6,0.004]
[1758682446566,3.18531785,4178.3,4178.2,0.004]
[1758682446763,0.792,4178.1,4177.1,0.02]
[1758682446967,2.39394809,4177.2,4177.1,0.02]
[1758682447276,6.62794809,4177.2,4177.1,0.02]
[1758682447569,7.00347338,4177.2,4177.1,0.02]
[1758682448069,4.60852529,4177.2,4177.1,0.7147]
[1758682448634,4.60852529,4177.2,4177.1,0.4796]
[1758682449225,4.233,4177.2,4177.1,0.7147]
[1758682449558,0.375499,4177.9,4177.1,0.7147]
[1758682449872,3.0,4177.7,4177.2,0.6947]
[1758682450071,3.0,4177.7,4177.1,0.02]
[1758682450224,3.0,4177.7,4177.2,0.6947]
[1758682450426,3.0,4177.7,4177.3,0.6947]
[1758682450657,3.0,4177.7,4177.4,0.6947]
[1758682450844,3.1192,4177.7,4177.5,0.4596]
[1758682451169,4.229,4177.8,4177.1,0.02]
[1758682451170,2.39371941,4177.6,4177.1,0.02]
[1758682451468,0.1192,4177.4,4177.1,0.02]
[1758682452164,0.25238276,4177.4,4177.1,0.02]
[1758682452334,2.39394809,4177.2,4177.1,0.02]
[1758682452542,6.75312166,4177.2,4177.1,0.02]
[1758682453167,4.35917357,4177.2,4177.1,0.02]
[1758682453561,0.13317357,4177.2,4177.1,0.02]
[1758682453762,4.225,4177.2,4177.1,0.02]
[1758682453961,0.792,4177.8,4177.1,0.476]
[1758682454162,0.1192,4177.5,4177.2,0.02393948]
[1758682454369,4.223,4177.6,4177.3,0.456]
[1758682454534,4.223,4177.6,4177.4,0.6829]
[1758682454734,4.223,4177.6,4177.5,0.456]
[1758682456765,4.223,4177.6,4177.1,0.02]
[1758682457143,4.15467027,4177.5,4177.1,0.02]
[1758682457347,2.52705792,4177.4,4177.1,0.02]
[1758682457548,6.75206517,4177.3,4177.1,0.02]
[1758682457750,4.4545,4177.3,4177.1,0.02]
[1758682457972,0.13316198,4177.2,4177.1,0.02]
[1758682458146,4.4545,4177.3,4177.1,0.02]
[1758682458468,3.39546056,4177.2,4177.1,0.02]
[1758682458686,0.13315247,4177.2,4177.1,0.02]
[1758682459038,3.98570056,4177.2,4177.1,0.02]
[1758682459640,1.15465247,4177.2,4177.1,0.02]
[1758682460449,6.98570056,4177.2,4177.1,0.02]
[1758682460755,7.6963536,4177.2,4177.1,0.02]
[1758682460954,9.39905878,4177.2,4177.1,0.02]
[1758682462042,15.68905878,4177.2,4177.1,0.02]
[1758682462996,9.39905878,4177.2,4177.1,0.02]
[1758682463281,12.80671252,4177.2,4177.1,0.02]
[1758682463945,12.60710056,4177.2,4177.1,0.02]
[1758682466688,8.57386772,4177.2,4177.1,0.024]
[1758682466998,8.13915247,4177.2,4177.1,0.024]
[1758682467147,10.53310056,4177.2,4177.1,0.024]
[1758682469195,11.19970056,4177.2,4177.1,0.024]
[1758682469365,11.90931619,4177.2,4177.1,0.024]
[1758682471069,11.90931619,4177.2,4176.6,0.004]
[1758682471070,6.18623468,4176.7,4176.6,0.004]
[1758682471273,11.23300278,4176.7,4176.6,0.004]
[1758682471462,11.89960278,4176.7,4176.6,0.004]
[1758682471667,12.27524179,4176.7,4176.6,0.004]
[1758682471973,12.27524179,4176.7,4176.2,0.004]
[1758682471974,3.18646399,4176.3,4176.2,0.004]
[1758682472148,13.42350773,4176.3,4176.2,0.004]
[1758682472346,14.60039849,4176.3,4176.2,0.004]
[1758682472563,6.18652133,4176.2,4176.1,1e-08]
[1758682472758,7.14848943,4176.2,4176.1,1e-08]
[1758682472981,7.81508943,4176.2,4176.1,1e-08]
[1758682473190,9.82973436,4176.2,4176.1,1e-08]
[1758682473490,9.82973436,4176.2,4175.1,0.02]
[1758682473491,0.792,4175.8,4175.1,0.02]
[1758682473658,3.792,4175.3,4175.1,0.02]
[1758682473861,8.32447734,4175.2,4175.1,0.02]
[1758682474050,13.01944091,4175.2,4175.1,0.02]
[1758682474682,13.39521137,4175.2,4175.1,0.02]
[1758682474882,14.79861137,4175.2,4175.1,0.02]
[1758682475890,15.02811137,4175.2,4175.1,0.02]
[1758682476091,6.89534264,4175.2,4175.1,0.02]
[1758682476266,11.09234264,4175.2,4175.1,0.02]
[1758682476980,8.6972478,4175.2,4175.1,0.02]
[1758682477184,11.09234264,4175.2,4175.1,0.02]
[1758682477385,11.32184264,4175.2,4175.1,0.02]
[1758682477694,12.67132807,4175.2,4175.1,0.02]
[1758682479302,6.07923323,4175.2,4175.1,0.02]
[1758682479466,13.16134264,4175.2,4175.1,0.02]
[1758682481321,14.33714999,4175.2,4175.1,0.02]
[1758682484099,14.33714999,4175.2,4175.1,0.024]
[1758682484300,13.89946025,4175.2,4175.1,0.024]
[1758682484531,15.57450765,4175.2,4175.1,0.024]
[1758682485034,16.04140765,4175.2,4175.1,0.024]
[1758682486905,16.67928766,4175.2,4175.1,0.024]
[1758682488241,16.04140765,4175.2,4175.1,0.024]
[1758682488603,6.18715221,4175.1,4174.6,1e-08]
[1758682488806,6.1873817,4174.7,4174.6,1e-08]
[1758682489025,11.21847665,4174.7,4174.6,1e-08]
[1758682489224,7.02847665,4174.7,4174.6,1e-08]
[1758682489518,13.66730271,4174.7,4174.6,1e-08]
[1758682490332,15.33724153,4174.7,4174.6,1e-08]
[1758682491927,9.07424153,4174.7,4174.6,1e-08]
[1758682492144,15.33724153,4174.7,4174.6,1e-08]
[1758682493519,15.33724153,4174.7,4174.6,0.44800001]
[1758682493520,13.66730271,4174.7,4174.6,0.44800001]
[1758682493814,13.66730271,4174.7,4174.6,0.67430001]
[1758682494006,5.00892101,4174.7,4174.6,0.67430001]
[1758682494206,10.29309536,4174.7,4174.6,0.67430001]
[1758682496217,7.89771366,4174.7,4174.6,0.67430001]
[1758682496414,0.1192,4175.1,4174.6,0.67430001]
[1758682496761,0.35450655,4175.8,4174.7,0.69825381]
[1758682496939,0.1192,4175.6,4175.3,2.39498355]
[1758682497130,4.19,4175.5,4175.4,0.448]
[1758682497313,4.19,4175.5,4175.4,3.06928012]
[1758682497634,4.3092,4175.6,4175.5,2.39492276]
[1758682497822,4.3092,4175.6,4175.5,3.06922276]
[1758682498347,0.1192,4175.6,4175.5,3.06922276]
[1758682498647,1.911,4175.6,4175.5,0.6743]
[1758682499227,1.911,4175.6,4175.5,3.06922276]
[1758682499610,1.911,4175.6,4175.5,0.6743]
[1758682500550,2.26606691,4175.6,4175.1,0.448]
[1758682500863,2.26606691,4175.6,4174.7,0.1192]
[1758682500864,0.1192,4175.0,4174.7,0.6743]
[1758682501061,4.3092,4175.0,4174.8,0.6743]
[1758682501270,4.3092,4175.0,4174.9,0.448]
[1758682501433,4.53111083,4175.0,4174.6,0.44800001]
[1758682501768,4.3092,4175.0,4174.7,0.6743]
[1758682502072,0.22190375,4174.9,4174.6,1e-08]
[1758682502220,2.75041176,4174.8,4174.6,1e-08]
[1758682502414,2.75042402,4174.7,4174.6,1e-08]
[1758682502659,6.77232402,4174.7,4174.6,1e-08]
[1758682502860,11.47257021,4174.7,4174.6,1e-08]
[1758682503258,11.93947021,4174.7,4174.6,1e-08]
[1758682503453,13.43662329,4174.7,4174.6,1e-08]
[1758682504181,13.81241948,4174.7,4174.6,1e-08]
[1758682505571,3.18761124,4174.3,4174.2,1e-08]
[1758682505736,3.18789822,4173.8,4173.7,0.004]
[1758682505940,11.05070939,4173.8,4173.7,0.004]
[1758682506172,12.89741803,4173.8,4173.7,0.004]
[1758682506375,12.63464247,4173.8,4173.7,1e-08]
[1758682507143,12.81441968,4173.8,4173.7,1e-08]
[1758682508655,8.62541968,4173.8,4173.7,1e-08]
[1758682508849,14.88841968,4173.8,4173.7,1e-08]
[1758682510166,15.52590497,4173.8,4173.7,1e-08]
[1758682511582,14.88841968,4173.8,4173.7,1e-08]
[1758682512963,14.98455746,4173.8,4173.7,1e-08]
[1758682514522,15.83612212,4173.8,4173.7,1e-08]
[1758682515030,3.18812785,4173.4,4173.3,1e-08]
[1758682515211,3.18824269,4173.2,4173.1,1e-08]
[1758682515394,11.5838287,4173.2,4173.1,1e-08]
[1758682515589,11.90721023,4173.2,4173.1,1e-08]
[1758682515796,11.90721023,4173.2,4171.1,0.02]
[1758682515797,6.18881702,4172.2,4171.2,0.4679]
[1758682516118,13.31908456,4172.2,4171.2,0.4679]
[1758682516287,13.31908456,4172.2,4171.3,0.2263]
[1758682517229,13.18385828,4172.2,4171.3,0.2263]
[1758682518100,8.49113751,4172.2,4171.8,0.2263]
[1758682518313,8.49113751,4172.2,4172.1,0.7142]
[1758682518898,5.35801991,4172.2,4172.1,0.7142]
[1758682519086,4.56601991,4172.2,4172.1,0.7142]
[1758682519526,7.0,4172.7,4172.1,0.7142]
[1758682519733,4.19,4172.6,4172.2,0.6942]
[1758682520028,3.0,4172.5,4172.3,0.6942]
[1758682520189,4.19,4172.4,4172.1,0.02]
[1758682520793,4.19,4172.4,4172.2,0.6942]
[1758682521006,7.19,4172.4,4172.3,0.6942]
[1758682522296,7.19,4172.4,4172.1,0.02]
[1758682522297,3.18881702,4172.2,4172.1,0.02]
[1758682522490,7.37781702,4172.2,4172.1,0.02]
[1758682522697,4.981,4172.2,4172.1,0.02]
[1758682522899,0.792,4172.2,4172.1,0.7142]
[1758682523213,0.50815976,4173.6,4172.3,0.004]
[1758682523430,0.4759297,4173.7,4172.4,0.6942]
[1758682523431,0.792,4173.0,4172.4,0.6942]
[1758682523631,3.18864469,4172.5,4172.4,0.6942]
[1758682523833,7.37764469,4172.5,4172.4,0.6942]
[1758682524704,7.37764469,4172.5,4172.4,0.4679]
[1758682525422,0.792,4172.4,4172.3,0.004]
[1758682525645,0.9112,4172.4,4172.3,0.004]
[1758682526446,0.9112,4172.4,4172.3,0.6982]
[1758682527231,5.1002,4172.4,4172.3,0.6982]
[1758682529236,0.1192,4172.4,4172.3,0.6982]
[1758682529447,4.189,4172.4,4172.3,0.6982]
[1758682531360,4.32201845,4172.4,4172.3,0.6982]
[1758682531522,4.32201845,4172.4,4172.3,0.4719]
[1758682532451,11.60562243,4172.4,4172.3,0.004]
[1758682532653,12.32617208,4172.4,4172.3,0.004]
[1758682532821,12.7021457,4172.4,4172.3,0.004]
[1758682533174,13.3374275,4172.4,4172.3,0.004]
[1758682533553,12.7021457,4172.4,4172.3,1e-08]
[1758682534315,9.36669609,4172.4,4172.3,1e-08]
[1758682534514,15.62869609,4172.4,4172.3,1e-08]
[1758682536517,12.2642457,4172.4,4172.3,1e-08]
[1758682536854,12.35617856,4172.4,4172.3,1e-08]
[1758682537070,14.1134457,4172.4,4172.3,1e-08]
[1758682537244,14.3392457,4172.4,4172.3,1e-08]
[1758682537582,13.34158069,4172.4,4172.3,1e-08]
[1758682537981,12.90368069,4172.4,4172.3,1e-08]
[1758682538734,10.30544357,4172.4,4172.3,1e-08]
[1758682538936,12.7021457,4172.4,4172.3,1e-08]
[1758682539140,14.7771457,4172.4,4172.3,1e-08]
[1758682539443,14.7771457,4172.4,4170.2,0.6942]
[1758682539444,0.792,4171.8,4170.2,0.6942]
[1758682539662,0.792,4171.6,4171.2,0.4679]
[1758682539967,0.13301845,4171.5,4171.3,0.2263]
[1758682540170,0.13301845,4171.4,4171.3,0.2263]
[1758682540474,0.63932407,4173.4,4171.3,0.2263]
[1758682540634,4.40294051,4173.3,4171.4,3.49187276]
[1758682540836,2.39642506,4172.9,4172.0,2.39690401]
[1758682541040,2.39653482,4172.7,4172.1,0.6942]
[1758682541231,4.187,4172.6,4172.1,0.6942]
[1758682541437,4.187,4172.6,4172.2,0.6664]
[1758682541675,0.37594057,4173.4,4172.3,0.6664]
[1758682541966,0.37594057,4173.4,4171.9,0.02396989]
[1758682541967,2.39631113,4173.1,4172.4,0.6664]
[1758682542171,4.979,4173.0,4172.4,0.6664]
[1758682542370,2.39648108,4172.8,4172.4,0.6664]
[1758682542537,4.187,4172.7,4172.4,0.6664]
[1758682542738,4.187,4172.7,4172.5,0.4347]
[1758682542964,4.187,4172.7,4172.5,0.6664]
[1758682543359,4.187,4172.7,4172.5,0.4347]
[1758682543561,0.792,4173.1,4172.6,0.6664]
[1758682543762,4.187,4173.3,4172.7,0.6664]
[1758682543977,4.187,4173.3,4172.8,0.6664]
[1758682544177,0.001,4173.8,4172.9,0.69036414]
[1758682544347,0.001,4173.1,4173.0,0.6664]
[1758682545643,0.001,4173.1,4172.7,0.6664]
[1758682545976,0.001,4173.1,4172.7,3.0629297]
[1758682546179,0.001,4173.1,4172.8,0.6664]
[1758682546477,0.001,4173.1,4173.0,2.39635753]
[1758682546850,0.001,4173.1,4173.0,3.06275753]
[1758682547376,0.001,4173.1,4173.0,0.6664]
[1758682548051,0.001,4173.1,4172.4,0.4347]
[1758682548374,0.001,4173.1,4172.5,0.4347]
[1758682548784,0.001,4173.1,4172.6,0.2317]
[1758682549294,0.001,4173.1,4173.0,2.39635753]
[1758682549712,0.001,4173.1,4173.0,3.06275753]
[1758682550016,0.001,4173.1,4173.0,0.6664]
[1758682550159,0.001,4173.1,4173.0,3.06275753]
[1758682550363,0.001,4173.1,4173.0,0.4347]
[1758682550605,0.001,4173.1,4173.0,2.83105753]
[1758682550778,0.001,4173.1,4173.0,0.4347]
[1758682551111,0.001,4173.1,4172.3,0.4347]
[1758682551393,0.1192,4172.8,4172.3,0.4347]
[1758682551958,0.1192,4172.8,4172.1,4.3042]
[1758682552306,0.1192,4172.8,4172.4,0.6664]
[1758682552500,0.1192,4172.8,4172.5,0.4347]
[1758682552702,0.1192,4172.8,4172.6,0.4347]
[1758682553001,0.1192,4173.0,4172.6,0.6664]
[1758682553302,0.1192,4173.0,4172.7,0.6664]
[1758682553906,0.1192,4173.0,4172.7,0.4347]
[1758682554057,0.001,4173.1,4172.8,0.69036472]
[1758682554457,0.001,4173.1,4172.9,0.6664]
[1758682554970,0.001,4173.1,4173.0,0.6664]
[1758682555363,0.001,4173.1,4172.7,0.2317]
[1758682555364,2.39642474,4172.9,4172.7,0.2317]
[1758682555577,2.39636613,4173.0,4172.7,0.6664]
[1758682555773,0.001,4173.1,4172.8,0.6664]
[1758682556191,0.001,4173.1,4172.9,0.6664]
[1758682556595,0.001,4173.1,4173.0,0.4347]
[1758682556897,0.001,4173.1,4173.0,0.6664]
[1758682557202,0.001,4173.1,4173.0,3.06275753]
[1758682557394,0.001,4173.1,4173.0,3.2059211]
[1758682558364,0.001,4173.1,4173.0,0.7856]
[1758682559487,0.001,4173.1,4172.8,0.1192]
[1758682559766,0.001,4173.1,4172.5,2.8172]
[1758682560705,0.001,4173.1,4172.5,5.21383946]
[1758682560905,0.001,4173.1,4172.5,2.8172]
[1758682561119,0.001,4173.1,4172.6,0.69036587]
[1758682561413,0.001,4173.1,4172.6,0.2317]
[1758682561631,0.001,4173.1,4172.7,0.2317]
[1758682561769,0.001,4173.1,4172.7,0.6664]
[1758682562186,0.001,4173.1,4172.5,0.1192]
[1758682562492,0.1192,4172.9,4172.5,0.4347]
[1758682562715,0.1192,4172.9,4172.6,0.6664]
[1758682563241,0.1192,4172.9,4172.4,2.39669633]
[1758682563242,0.1192,4172.9,4172.2,0.3509]
[1758682563422,2.51566802,4172.9,4172.6,0.4347]
[1758682563619,2.39653651,4172.7,4172.2,0.3509]
[1758682563804,2.39653651,4172.7,4172.2,0.1192]
[1758682564811,0.1192,4172.9,4172.2,0.1192]
[1758682564812,0.1192,4172.9,4172.2,3.18240921]
[1758682565015,0.1192,4172.9,4172.2,0.7856]
[1758682565383,2.39647655,4172.8,4172.2,0.7856]
[1758682565590,0.1192,4172.9,4172.2,0.7856]
[1758682566090,2.3965642,4172.7,4172.2,0.1192]
[1758682566486,2.39648493,4172.8,4172.2,0.1192]
[1758682567405,2.39653148,4172.7,4172.2,0.1192]
[1758682568344,2.51567218,4172.9,4172.2,0.5561]
[1758682568637,0.1192,4172.9,4172.2,2.95291608]
[1758682568932,0.1192,4172.9,4172.3,0.26126759]
[1758682569100,0.001,4173.1,4172.4,2.83360213]
[1758682569654,0.001,4173.1,4172.5,0.4369]
[1758682569846,0.001,4173.1,4173.0,2.39635753]
[1758682570148,0.001,4173.1,4173.0,9.29535753]
[1758682570300,0.001,4173.1,4173.0,9.96955753]
[1758682572029,0.001,4173.1,4173.0,10.76155753]
[1758682572242,0.001,4174.3,4173.2,0.792]
[1758682572399,0.001,4174.3,4174.2,2.39566863]
[1758682572736,0.001,4174.3,4174.2,9.60062531]
[1758682572933,0.001,4174.3,4174.2,10.23966863]
[1758682573637,0.001,4174.3,4174.2,11.03166863]
[1758682575019,1e-08,4174.9,4174.4,0.792]
[1758682575213,1e-08,4174.9,4174.8,2.39532432]
[1758682575416,1e-08,4174.9,4174.8,9.57532432]
[1758682575652,1e-08,4174.9,4174.8,10.23832432]
[1758682579059,1e-08,4174.9,4174.8,10.35752432]
[1758682579649,1e-08,4174.9,4174.8,5.51452432]
[1758682579850,1e-08,4174.9,4174.8,9.69252432]
[1758682583762,0.00100001,4174.9,4174.8,9.69252432]
[1758682584624,0.00100001,4174.9,4174.8,6.69252432]
[1758682586457,0.00100001,4174.9,4174.8,10.23632432]
[1758682587174,0.00100001,4174.9,4174.8,11.02832432]
[1758682593371,0.00100001,4174.9,4174.8,5.39532432]
[1758682593572,0.00100001,4174.9,4174.8,9.56932432]
[1758682594880,0.22930001,4174.9,4174.8,9.56932432]
[1758682595253,0.68060001,4174.9,4174.8,2.39532432]
[1758682595453,0.68060001,4174.9,4174.8,6.56832432]
[1758682595807,1e-08,4175.9,4175.3,2.39503748]
[1758682596086,1e-08,4175.9,4175.7,2.39480805]
[1758682596391,1e-08,4175.9,4174.6,2.39543684]
[1758682596392,1e-08,4175.9,4175.8,9.6869507]
[1758682596751,1e-08,4175.9,4175.8,6.6869507]
[1758682597047,1e-08,4175.9,4175.8,10.2307507]
[1758682597249,1e-08,4175.9,4175.8,9.5677507]
[1758682598302,1e-08,4175.9,4175.8,9.9982507]
[1758682598444,0.02,4176.9,4176.0,3.18663601]
[1758682598788,0.02,4176.9,4176.0,10.38258237]
[1758682598991,1e-08,4176.9,4176.4,2.39440666]
[1758682599275,1e-08,4176.9,4176.8,2.39417736]
[1758682599438,0.02,4177.9,4176.9,3.0]
[1758682599637,0.51105848,4179.0,4178.9,2.39297422]
[1758682599638,0.001,4179.0,4178.9,2.39297422]
[1758682599838,0.001,4179.0,4178.9,3.433]
[1758682600771,0.001,4179.0,4176.8,2.39417614]
[1758682600989,0.001,4179.0,4177.0,3.0]
[1758682601193,0.001,4179.0,4177.2,3.0]
[1758682601393,0.2434,4178.9,4177.4,3.0]
[1758682601557,0.37,4178.8,4177.6,3.0]
[1758682601903,0.2434,4178.7,4177.8,3.0]
[1758682602191,0.001,4179.0,4176.9,9.211]
[1758682602192,0.37,4178.6,4177.9,4.171]
[1758682602485,0.37,4178.5,4177.9,4.171]
[1758682602688,0.2434,4178.4,4177.1,0.02]
[1758682602895,0.2434,4178.4,4177.3,3.0]
[1758682602896,0.37,4178.4,4177.3,3.0]
[1758682603206,2.76331785,4178.3,4177.3,3.0]
[1758682603504,0.37,4178.2,4177.3,3.0]